[Event "5th Sharjah Masters 2022"]
[Site "Sharjah"]
[Date "2022.05.25"]
[Round "5.5"]
[White "Tabatabaei, M. Amin"]
[Black "Yuffa, Daniil"]
[Result "1-0"]
[ECO "B31"]
[WhiteElo "2650"]
[BlackElo "2597"]
[Annotator "TA"]
[PlyCount "121"]
[EventDate "2022.05.21"]
[EventType "swiss"]
[EventCountry "UAE"]
[SourceTitle "playchess.com"]
[Source "ChessBase"]
[SourceQuality "1"]
[TimeControl "5400+30"]

{[%evp 14,121,30,28,30,0,7,4,36,11,37,34,39,41,36,10,45,45,57,33,36,20,21,13,32,15,13,13,21,17,10,0,0,0,4,0,31,29,28,23,23,-16,27,27,31,23,37,48,39,21,34,10,10,10,10,0,45,56,35,6,40,43,68,40,62,48,46,27,42,41,39,8,43,0,134,122,109,109,120,120,333,332,307,293,357,348,336,306,399,387,406,406,406,361,360,295,621,568,29960,29959,29967,29965,29971,29973,29973,29973,29973,29974,29973,29974]} 1. e4 {[%emt 0:00:16]} c5 {[%emt 0:00:46]} 2. Nf3 {[%emt 0:00:08]} Nc6 {[%emt 0:00:08]} 3. Bb5 {[%emt 0:01:10]} g6 {[%emt 0:00:07]} 4. O-O {[%emt 0:00:41]} Bg7 {[%emt 0:00:03]} 5. Re1 {[%emt 0:00:13]} e5 {[%emt 0:00:15]} 6. Bxc6 {[%emt 0:00:12]} dxc6 {[%emt 0:00:06]} 7. d3 {[%emt 0:00:08]} Qe7 {[%emt 0:00:35]} 8. a4 {[%emt 0:01:59]} Nf6 {[%emt 0:06:03][%cal Bg8f6,Bf6d7,Bd7f8,Bf8e6,Be6d4][%mdl 32] B31: Sicilian: 2...Nc6 3 Bb5 g6.} 9. Nbd2 {[%emt 0:10:47]} Nd7 {[%emt 0:08:36]} 10. Nc4 {[%emt 0:00:09]} Nf8 {[%emt 0:08:51] [#] The position is equal.} 11. Bd2 $5 $146 {[%emt 0:17:57][%cal Of3e5][%mdl 8] Hoping for Nfxe5! New and interesting.} ({Predecessor:} 11. a5 Bg4 12. h3 Bxf3 13. Qxf3 Ne6 14. Be3 O-O 15. Qg3 Qc7 16. Reb1 b5 17. axb6 axb6 18. Rxa8 Rxa8 {½-½ (69) Melaa,S (2117)-Carlsson,L (2374) Uppsala 2021}) 11... Bg4 {[%emt 0:06:38]} 12. h3 {[%emt 0:07:39]} Bxf3 {[%emt 0:01:29]} 13. Qxf3 {[%emt 0:00:02]} Ne6 {[%emt 0:00:44]} 14. a5 {[%emt 0:00:04]} Nd4 {[%emt 0:03:03]} 15. Qd1 {[%emt 0:00:35]} O-O {[%emt 0:00:09]} 16. Rb1 {[%emt 0:00:05]} Qc7 {[%emt 0:16:32]} 17. b4 {[%emt 0:00:57]} cxb4 {[%emt 0:02:24]} 18. Bxb4 {[%emt 0:01:17] Black should prevent c3.} Rfd8 {[%emt 0:00:12]} 19. Bc5 {[%emt 0:03:34]} Bf8 {[%emt 0:05:09]} 20. Bxf8 {[%emt 0:00:37]} Rxf8 {[%emt 0:00:46]} 21. Qd2 {[%emt 0:06:28]} Rab8 {[%emt 0:03:01]} 22. c3 {[%emt 0:06:44]} Nb5 {[%emt 0:05:34]} 23. h4 {[%emt 0:00:16][%cal Oh4h5]} f6 {[%emt 0:03:22]} 24. h5 {[%emt 0:01:38]} g5 {[%emt 0:01:55]} 25. Re3 {[%emt 0:03:17]} Qf7 {[%emt 0:01:57]} 26. Rg3 {[%emt 0:06:28]} Kh8 {[%emt 0:00:03]} 27. Ne3 {[%emt 0:00:19]} Rbd8 {[%emt 0:01:20]} 28. h6 {[%emt 0:01:02]} Rd7 {[%emt 0:01:27]} 29. Rf3 {[%emt 0:02:13]} Qe6 {[%emt 0:00:48]} 30. Nf5 {[%emt 0:04:27]} Rfd8 {[%emt 0:02:12]} 31. Rb4 {[%emt 0:05:46]} Nd6 {[%emt 0:07:29]} 32. Nxd6 {[%emt 0:03:22]} Qxd6 {[%emt 0:00:07]} 33. Qb2 {[%emt 0:00:12]} Qe7 {[%emt 0:00:09]} 34. g3 {[%emt 0:00:59]} Qf7 {[%emt 0:01:49]} 35. Kg2 {[%emt 0:04:19]} Qe7 {[%emt 0:02:18]} 36. Rf5 {[%emt 0:02:04]} Rg8 {[%emt 0:01:28][%cal Bd8g8,Bg8g6,Bg6h6][%mdl 32]} (36... c5 $5 {[%cal Rc5b4]} 37. Rb5 Rc7 $11) 37. Qe2 {[%emt 0:04:05]} Rg6 {[%emt 0:02:45]} 38. d4 {[%emt 0:01:11]} (38. Qe3 {seems wilder.} Rxh6 39. Qxa7 Kg7 40. a6) 38... c5 {[%emt 0:03:32]} 39. dxc5 {[%emt 0:00:20] White is more active.} (39. Rc4 $5 {[%cal Rc4c5]}) 39... Qxc5 {[%emt 0:00:35]} 40. a6 {[%emt 0:01:17]} b6 {[%emt 0:00:05]} 41. Rc4 {[%emt 0:02:33][%cal Bb4c4,Bc4c6,Bc6h6][%mdl 32]} Qf8 {[%emt 0:00:05]} 42. Rc6 {[%emt 0:00:16] Black must now prevent Rf3.} (42. Rf3 $5 {[%cal Rf3d3]}) 42... Rxh6 {[%emt 0:01:57]} 43. Qc4 {[%emt 0:00:18]} (43. Rf3 $5 {[%cal Rf3d3]}) 43... Qf7 {[%emt 0:00:51]} (43... g4 $11 44. Qb3 Qe7) 44. Qxf7 $16 {[%emt 0:01:09]} Rxf7 {[%emt 0:00:02] [#]} 45. Rxe5 $3 {[%emt 0:00:19][%mdl 512]} fxe5 {[%emt 0:01:12]} 46. Rxh6 {[%emt 0:00:03][%mdl 4096] Endgame Strongly threatening Re6. KR-KR} Rc7 $2 {[%emt 0:02:17] [#] This costs Black the game.} (46... Re7 $16 {is a better defense.}) 47. Re6 $1 $18 {[%emt 0:00:06]} Kg7 {[%emt 0:00:19]} 48. Rxe5 {[%emt 0:00:44]} Kf6 {[%emt 0:00:03]} 49. Rf5+ {[%emt 0:00:34]} Kg6 {[%emt 0:00:05] [#]} 50. f4 $1 {[%emt 0:01:24]} gxf4 {[%emt 0:00:16]} 51. gxf4 {[%emt 0:00:02]} Rxc3 {[%emt 0:00:17]} 52. Rf8 {[%emt 0:00:07]} Ra3 {[%emt 0:00:53]} 53. e5 {[%emt 0:00:07]} Kg7 {[%emt 0:00:04]} 54. Rb8 {[%emt 0:01:46]} Rxa6 $2 {[%emt 0:00:03]} (54... Kg6 55. e6 Re3) 55. f5 {[%emt 0:01:14][%cal Bf4f5,Bf5f6][%mdl 32] Intending f6+ and mate.} Ra5 {[%emt 0:00:55]} 56. f6+ {[%emt 0:00:52] White mates.} Kf7 {[%emt 0:00:44]} 57. Rb7+ {[%emt 0:00:04]} Kg6 {[%emt 0:01:22]} 58. Rg7+ {[%emt 0:00:59]} Kh6 {[%emt 0:00:02]} 59. e6 {[%emt 0:00:12][%cal Be5e6,Be6e7][%mdl 32]} Rf5 {[%emt 0:00:23]} 60. e7 {[%emt 0:00:08]} Rxf6 {[%emt 0:00:03]} 61. Rg8 {[%emt 0:00:08] Weighted Error Value: White=0.09 (flawless) /Black=0.39} 1-0

[Event "5th Sharjah Masters 2022"]
[Site "Sharjah"]
[Date "2022.05.25"]
[Round "5.6"]
[White "Petrosyan, Manuel"]
[Black "Sindarov, Javokhir"]
[Result "1-0"]
[ECO "C54"]
[WhiteElo "2638"]
[BlackElo "2609"]
[Annotator "TA"]
[PlyCount "105"]
[EventDate "2022.05.21"]
[EventType "swiss"]
[EventCountry "UAE"]
[SourceTitle "playchess.com"]
[Source "ChessBase"]
[SourceQuality "1"]
[TimeControl "5400+30"]

{[%evp 11,105,24,20,12,19,16,17,10,44,10,6,3,12,14,10,26,20,11,23,13,41,0,22,0,0,0,0,0,35,0,44,29,45,27,33,39,41,34,50,54,46,15,39,39,39,39,39,39,39,39,39,34,35,35,90,92,108,119,134,47,47,47,62,58,237,219,258,245,245,245,227,185,286,244,298,143,283,276,463,429,670,529,1215,1166,963,938,29978,29978,29978,29978,29977,29979,29979,29980,29987,29988]} 1. e4 {[%emt 0:01:39]} e5 {[%emt 0:00:38]} 2. Nf3 {[%emt 0:00:10]} Nc6 {[%emt 0:00:05]} 3. Bc4 {[%emt 0:00:13]} Nf6 {[%emt 0:01:29]} 4. d3 {[%emt 0:00:15]} Bc5 {[%emt 0:01:39]} 5. c3 {[%emt 0:00:44]} a6 {[%emt 0:03:17]} 6. O-O {[%emt 0:02:10]} d6 {[%emt 0:00:16][%cal Bd7d6,Bd6d5][%mdl 32]} 7. a4 $1 {[%emt 0:01:09][%mdl 4] is more profitable than 7.Bb3 at the moment. C54: Giuoco Piano: 4 c3 Nf6, main lines with 5 d4 and 5 d3.} Ba7 {[%emt 0:01:42]} 8. Re1 {[%emt 0:01:49]} O-O {[%emt 0:01:32]} 9. h3 {[%emt 0:03:33] The position is equal.} Ne7 {[%emt 0:09:26]} 10. d4 {[%emt 0:11:45]} Ng6 {[%emt 0:15:58]} 11. Bd3 {[%emt 0:01:26]} d5 {[%emt 0:13:29] [#]} 12. Nxe5 $146 {[%emt 0:14:35]} ({Predecessor:} 12. exd5 exd4 13. cxd4 Nxd5 14. Nc3 Ndf4 15. Be4 c6 16. Be3 Qf6 17. a5 Bf5 18. Bxf4 Nxf4 19. Bxf5 Qxf5 {½-½ (51) Saric,I (2645)-Saraci,N (2430) Petrovac 2021}) 12... Nxe5 {[%emt 0:04:04]} 13. dxe5 {[%emt 0:00:05]} Nxe4 {[%emt 0:00:05]} 14. Be3 {[%emt 0:00:05]} Bxe3 {[%emt 0:05:00]} 15. Rxe3 {[%emt 0:00:05]} f5 {[%emt 0:00:03]} 16. Nd2 {[%emt 0:14:26]} (16. exf6 $5 Qxf6 17. Rf3 $11) 16... f4 {[%emt 0:09:07]} 17. Re1 {[%emt 0:00:59]} (17. Rxe4 $5 dxe4 18. Bxe4 $11) 17... Nxd2 {[%emt 0:00:05]} 18. Qxd2 {[%emt 0:01:30]} Be6 {[%emt 0:00:06]} 19. Be2 {[%emt 0:10:17][%cal Bd3e2,Be2g4,Bg4f3][%mdl 32]} Qe8 {[%emt 0:00:26]} 20. Bg4 {[%emt 0:06:12]} h5 {[%emt 0:02:29]} 21. Bf3 {[%emt 0:03:44]} Rd8 {[%emt 0:02:45]} 22. Qe2 {[%emt 0:00:25]} g6 {[%emt 0:00:54]} 23. b4 {[%emt 0:02:54]} Kg7 {[%emt 0:04:25]} 24. b5 {[%emt 0:01:56]} axb5 {[%emt 0:04:19]} 25. axb5 {[%emt 0:00:05]} Qe7 {[%emt 0:00:03]} 26. Ra7 {[%emt 0:03:23]} Qc5 {[%emt 0:01:53]} 27. Rxb7 {[%emt 0:00:49]} Qxc3 {[%emt 0:00:09]} 28. b6 {[%emt 0:01:22]} Rf7 {[%emt 0:00:16]} 29. bxc7 {[%emt 0:02:25]} Rxc7 {[%emt 0:00:04]} 30. Rxc7+ {[%emt 0:01:14]} Qxc7 {[%emt 0:00:05]} 31. Qa6 {[%emt 0:00:06]} Qc3 {[%emt 0:03:12]} 32. Re2 {[%emt 0:02:14]} Qc8 {[%emt 0:01:20]} ({Black should play} 32... Re8 $14) 33. Qb6 $36 {[%emt 0:00:16][%mdl 2048] White is in control.} Re8 {[%emt 0:02:57]} 34. Ra2 {[%emt 0:01:06] aiming for Ra7+. White is more active.} Re7 {[%emt 0:01:52]} 35. Ra7 {[%emt 0:02:20] Against Qc7} (35. Ra6 $1 $16) 35... Rxa7 $1 $14 {[%emt 0:00:16]} 36. Qxa7+ {[%emt 0:00:02][%mdl 4096] Endgame KQB-KQB} Kh6 {[%emt 0:07:24]} 37. Qe7 {[%emt 0:01:00] Hoping for Qf6.} Qg8 $2 {[%emt 0:00:03] This costs Black the game.} ({Better is} 37... d4 $1 $14) 38. Qf6 $1 $18 {[%emt 0:04:11]} Qf7 {[%emt 0:00:05] White must now prevent ...Qxf6.} 39. Qh8+ {[%emt 0:00:07]} Qh7 {[%emt 0:02:14] [#]} 40. Qf8+ {[%emt 0:00:37]} Qg7 {[%emt 0:00:17]} 41. Qxf4+ {[%emt 0:00:10]} g5 {[%emt 0:01:14]} (41... Kh7 $142 42. Be2 Qf7) 42. Qd4 {[%emt 0:00:05]} Qc7 {[%emt 0:00:20] [#]} 43. g3 {[%emt 0:03:11]} ({And not} 43. Bxd5 Qd7 44. h4 Qxd5 45. hxg5+ Kxg5 46. Qe3+ Kg6 $11) (43. g4 $1 $18 {[%cal Rg4h5]}) 43... Qf7 {[%emt 0:02:37]} (43... Bxh3 $16 44. Bxd5 Bf5) 44. Qb6 {[%emt 0:01:44] Threatens to win with Bxd5.} Qg6 $2 {[%emt 0:00:40]} (44... Qd7 {was called for.} 45. Bd1 Qe7) 45. Qd8 {[%emt 0:01:22]} h4 {[%emt 0:01:35]} (45... d4 $142 46. Qxd4 Bxh3) 46. Bxd5 {[%emt 0:01:33]} Bxh3 {[%emt 0:00:46]} 47. gxh4 {[%emt 0:01:41]} gxh4+ {[%emt 0:00:48]} 48. Kh2 {[%emt 0:00:01]} Qg4 {[%emt 0:00:30]} 49. Qf8+ {[%emt 0:01:02] White mates.} Kg6 {[%emt 0:00:22]} 50. Qf7+ {[%emt 0:00:24]} Kh6 {[%emt 0:00:05]} 51. Qf6+ {[%emt 0:00:09]} Kh7 {[%emt 0:00:05]} 52. Bf3 {[%emt 0:00:20]} Qc4 {[%emt 0:01:18]} 53. Kxh3 {[%emt 0:00:09] Weighted Error Value: White=0.12 (very precise) /Black=0.49} 1-0

[Event "5th Sharjah Masters 2022"]
[Site "Sharjah"]
[Date "2022.05.25"]
[Round "5.7"]
[White "Ponkratov, Pavel"]
[Black "Sargissian, Gabriel"]
[Result "1/2-1/2"]
[ECO "C89"]
[WhiteElo "2624"]
[BlackElo "2694"]
[Annotator "TA"]
[PlyCount "126"]
[EventDate "2022.05.21"]
[EventType "swiss"]
[EventCountry "UAE"]
[SourceTitle "playchess.com"]
[Source "ChessBase"]
[SourceQuality "1"]
[TimeControl "5400+30"]

{[%evp 29,126,31,43,39,44,39,76,68,83,81,85,68,80,14,21,0,54,33,28,-10,132,101,178,191,177,182,165,171,210,202,245,212,206,165,180,127,127,102,89,94,168,171,204,207,210,213,198,133,169,140,137,139,136,139,139,135,142,111,110,111,142,17,18,24,102,22,22,22,22,22,22,22,22,22,22,22,22,0,0,0,0,0,0,0,0,0,0,0,0,0,0,0,0,0,0,0,0,0,262]} 1. e4 {[%emt 0:00:03]} e5 {[%emt 0:00:24]} 2. Nf3 {[%emt 0:00:05]} Nc6 {[%emt 0:00:14]} 3. Bb5 {[%emt 0:00:04]} a6 {[%emt 0:00:28]} 4. Ba4 {[%emt 0:00:05]} Nf6 {[%emt 0:00:26]} 5. O-O {[%emt 0:00:05]} Be7 {[%emt 0:00:47]} 6. Re1 {[%emt 0:00:06]} b5 {[%emt 0:00:23]} 7. Bb3 {[%emt 0:00:04]} O-O {[%emt 0:00:41]} 8. c3 {[%emt 0:00:03]} d5 {[%emt 0:01:30]} 9. exd5 {[%emt 0:00:05]} Nxd5 {[%emt 0:00:23]} 10. Nxe5 {[%emt 0:00:04]} Nxe5 {[%emt 0:00:15]} 11. Rxe5 {[%emt 0:00:04]} c6 {[%emt 0:00:18]} 12. d4 {[%emt 0:00:03]} Bd6 {[%emt 0:00:37]} 13. Re1 {[%emt 0:00:05]} Qh4 {[%emt 0:01:11]} 14. g3 {[%emt 0:00:04]} Qh3 {[%emt 0:00:22]} 15. Re4 {[%emt 0:00:03]} g5 {[%emt 0:01:12]} 16. Qf1 {[%emt 0:00:05] C89: Closed Ruy Lopez: Marshall Attack.} (16. Bxg5 Qf5 17. Re1 (17. Bxd5 $2 cxd5 18. Bh6 dxe4 $19) 17... Qxg5 $17) 16... Qh5 {[%emt 0:04:48]} 17. Nd2 {[%emt 0:00:47]} f5 {[%emt 0:01:32]} 18. Bd1 $1 {[%emt 0:00:05] White is better.} Qh6 {[%emt 0:03:17]} 19. Re1 {[%emt 0:00:39]} f4 {[%emt 0:00:45][%cal Od5e3]} 20. Ne4 {[%emt 0:01:36]} Bc7 {[%emt 0:05:24]} 21. Bd2 {[%emt 0:06:09]} ({Better is} 21. a4 $16) 21... Bf5 $1 $11 {[%emt 0:05:06]} 22. Nc5 $36 {[%emt 0:16:28][%mdl 2048] Black is under pressure. has lost popularity (22.Bf3).} Kh8 {[%emt 0:09:44]} (22... Bh3 $11 23. Qe2 Bd6) 23. Bf3 {[%emt 0:00:37]} Bh3 {[%emt 0:17:33] [#]} 24. Qd3 $146 {[%emt 0:07:33]} (24. Qe2 $5 {[%cal Ra2a4]}) ({Predecessor:} 24. Qe2 Rf5 25. Bh1 Raf8 26. a4 f3 27. Qe4 R5f6 28. axb5 axb5 29. Nd3 Nf4 30. Nxf4 gxf4 {0-1 (30) Boccia,M (2422)-Simmelink,J (2469) LSS email 2017}) 24... Ne3 {[%emt 0:11:15]} 25. d5 {[%emt 0:25:14]} (25. fxe3 $2 fxg3 26. Qe2 g4 $19) 25... Nxd5 {[%emt 0:08:21]} (25... Bb6 $16 {keeps fighting.} 26. Qd4+ (26. fxe3 Bxc5 27. Be4 fxg3 $19) 26... Rf6 27. Bxe3 (27. fxe3 fxg3 28. hxg3 Bxc5 $15) (27. dxc6 Rd8 $17) 27... fxe3 28. Rxe3 Bxc5 29. Qxc5 Raf8) 26. Bxd5 $18 {[%emt 0:01:43]} cxd5 {[%emt 0:00:15]} 27. c4 $1 {[%emt 0:00:02] Threatens to win with Bc3+.} (27. Qxd5 $2 Rad8 28. Qe4 Rxd2 $19) 27... Bd8 {[%emt 0:03:53]} (27... dxc4 $2 28. Qd5 Be5 29. Qxe5+ $18) 28. Bc3+ {[%emt 0:03:56]} ({But not} 28. Qxd5 $6 Bf6 29. Ne6 Bxe6 30. Qxe6 (30. Rxe6 Rad8 $11) 30... Rfe8 $14) (28. cxb5 axb5 29. Bc3+ (29. Qxd5 Bf6 $16) (29. Qxb5 fxg3 30. hxg3 Qf6 $14) 29... Bf6 $16) 28... Bf6 {[%emt 0:00:11]} 29. cxd5 {[%emt 0:00:09]} b4 {[%emt 0:04:54]} 30. Bxf6+ {[%emt 0:08:02]} Qxf6 {[%emt 0:00:26]} 31. Ne4 {[%emt 0:00:13]} Qxb2 {[%emt 0:02:10]} 32. Nxg5 {[%emt 0:00:36]} (32. Rab1 $1 $18 {[%cal Rb1b2]} Qg7 33. Rxb4) 32... Bf5 $16 {[%emt 0:00:12]} 33. Qf3 {[%emt 0:03:24]} fxg3 {[%emt 0:00:33]} 34. hxg3 {[%emt 0:00:44]} Rad8 {[%emt 0:02:42] [#]} (34... Be6 $16 {is a better defense.} 35. Qg2 (35. dxe6 Rxf3 36. Nxf3 Qf6 $15) 35... Bg4) 35. Rad1 $1 $18 {[%emt 0:04:57]} Qf6 {[%emt 0:04:00] [#]} 36. Qe3 {[%emt 0:01:22]} a5 {[%emt 0:03:57]} 37. Ne6 {[%emt 0:01:47]} Rde8 {[%emt 0:00:37]} 38. Rd2 {[%emt 0:06:07]} (38. Qc5 $18 Rc8 39. Qa7) 38... Qc3 {[%emt 0:01:52]} 39. Rd4 {[%emt 0:02:34] Threatening mate with Qe5+.} Qxe3 {[%emt 0:03:37]} 40. Rxe3 {[%emt 0:00:04]} Bxe6 {[%emt 0:00:47]} 41. dxe6 $16 {[%emt 0:00:06][%mdl 4096] Endgame KRR-KRR} Rf6 {[%emt 0:00:11]} 42. Rde4 {[%emt 0:00:08]} Rf5 {[%emt 0:01:44]} 43. Kg2 {[%emt 0:04:48] And now g4 would win.} Kg7 {[%emt 0:00:28]} 44. g4 {[%emt 0:06:49]} Rb5 {[%emt 0:00:06]} 45. Rd4 {[%emt 0:02:46]} ({White should try} 45. Re5 $16 Rxe5 46. Rxe5) 45... a4 $1 $11 {[%emt 0:01:42]} 46. Rd7+ {[%emt 0:00:54]} Kg8 {[%emt 0:00:08]} (46... Kg6 $11 {remains equal.}) 47. Rh3 {[%emt 0:01:44] 0x0.002d00677d89dp-1022s more active pieces.} (47. Rd2 $16) 47... Rxe6 {[%emt 0:00:35] The position is equal.} 48. Rhxh7 {[%emt 0:00:12] Hoping for Rdg7+.} Rg6 {[%emt 0:01:22] Inhibits Rdg7+.} 49. Rhe7 {[%emt 0:00:45][%cal Rd7d8]} Kf8 {[%emt 0:00:07]} 50. Rf7+ {[%emt 0:00:33]} Kg8 {[%emt 0:00:05]} 51. Rf4 {[%emt 0:00:12][%cal Oa2a3]} Rgb6 {[%emt 0:00:27]} 52. Rc4 {[%emt 0:00:34][%cal Rc4c8]} Rb8 {[%emt 0:00:10] Inhibits Rc8+.} 53. Rd2 {[%emt 0:00:36] Rb2 is the strong threat.} b3 {[%emt 0:00:08]} 54. axb3 {[%emt 0:00:04]} axb3 {[%emt 0:00:07] Strongly threatening ...b2.} 55. Rb2 {[%emt 0:00:08]} Rb4 {[%emt 0:01:20]} 56. Rxb4 {[%emt 0:00:06]} Rxb4 {[%emt 0:00:04] KR-KR} 57. f3 {[%emt 0:01:38]} Kf7 {[%emt 0:00:32]} 58. Kf2 {[%emt 0:00:06]} Kg6 {[%emt 0:00:42]} 59. Ke3 {[%emt 0:00:08]} Kg5 {[%emt 0:00:15]} 60. Kd3 {[%emt 0:00:04]} Rb8 {[%emt 0:00:36]} 61. Kc4 {[%emt 0:00:13]} Rc8+ $1 {[%emt 0:00:15]} 62. Kxb3 {[%emt 0:00:21]} Kf4 {[%emt 0:00:06]} 63. Rf2 {[%emt 0:00:17]} Ke5 $2 {[%emt 0:03:48][%mdl 40960] Blacks defense is rewarded with a draw.  Weighted Error Value: White=0.19 (very precise) /Black=0.17 (very precise) . An unexpected result.} (63... Kg3 $11 {and Black stays safe.} 64. Rf1 Kg2) 1/2-1/2

[Event "5th Sharjah Masters 2022"]
[Site "Sharjah"]
[Date "2022.05.25"]
[Round "5.8"]
[White "Sadhwani, Raunak"]
[Black "Erigaisi Arjun"]
[Result "1/2-1/2"]
[ECO "B47"]
[WhiteElo "2619"]
[BlackElo "2675"]
[Annotator "TA"]
[PlyCount "74"]
[EventDate "2022.05.21"]
[EventType "swiss"]
[EventCountry "UAE"]
[SourceTitle "playchess.com"]
[Source "ChessBase"]
[SourceQuality "1"]
[TimeControl "5400+30"]

{[%evp 9,74,10,45,0,0,0,16,8,5,0,9,6,22,11,29,12,72,81,86,79,72,81,81,81,81,81,76,72,78,94,97,93,89,95,81,83,79,22,50,49,56,56,55,60,65,52,54,58,57,45,71,57,64,57,57,57,57,52,55,48,48,55,60,53,54,55,204]} 1. e4 {[%emt 0:00:02]} c5 {[%emt 0:01:35]} 2. Nf3 {[%emt 0:00:04]} e6 {[%emt 0:00:06]} 3. d4 {[%emt 0:00:11]} cxd4 {[%emt 0:00:06]} 4. Nxd4 {[%emt 0:00:03]} Nc6 {[%emt 0:00:06]} 5. Nc3 {[%emt 0:00:03]} Qc7 {[%emt 0:00:06]} 6. g4 {[%emt 0:07:08] B47: Sicilian: Taimanov: 5 Nc3 Qc7 6 f4, 6 g3 and 6 Be2.} a6 {[%emt 0:00:21]} 7. Be3 {[%emt 0:00:14]} b5 {[%emt 0:00:50]} 8. Nxc6 {[%emt 0:00:11] The position is equal.} Qxc6 {[%emt 0:02:19]} 9. Qd2 {[%emt 0:00:09] [#]} h5 $146 {[%emt 0:26:07]} (9... b4 $5 {[%cal Rb4c3]} 10. Ne2 Qxe4 $15) ({Predecessor:} 9... b4 10. Ne2 Qxe4 11. Rg1 Qc4 12. Ng3 Qc7 13. O-O-O Ne7 14. Nh5 Nd5 15. Bd4 Rg8 {½-½ (51) Esipenko,A (2714)-Shankland,S (2708) Wijk aan Zee 2022}) 10. g5 {[%emt 0:07:33]} Ne7 $1 {[%emt 0:00:13]} 11. Rg1 $36 {[%emt 0:08:54][%mdl 2048] White is pushing.} Ng6 {[%emt 0:04:19]} 12. f4 {[%emt 0:08:42] Against Ne5} Nh4 {[%emt 0:14:44]} (12... Bb4 $11) 13. Qf2 {[%emt 0:03:27] White is more active.} b4 {[%emt 0:00:07] [#]} ({Weaker is} 13... Bb4 14. O-O-O Ng6 15. Bd4) 14. Nd5 {[%emt 0:12:09]} ({Much worse is} 14. Qxh4 bxc3 15. b3 Qxe4 $11) 14... exd5 {[%emt 0:00:16]} 15. exd5 {[%emt 0:07:44]} ({Not} 15. Qxh4 dxe4 16. O-O-O d5 $17) 15... Qxd5 {[%emt 0:00:16]} 16. Qxh4 {[%emt 0:00:07]} Bc5 {[%emt 0:05:18]} 17. Bxc5 {[%emt 0:03:10]} Qxc5 {[%emt 0:00:23]} 18. Qf2 {[%emt 0:02:29] Prevents Qe3+.} d6 {[%emt 0:02:01]} 19. Qxc5 {[%emt 0:06:27]} dxc5 {[%emt 0:00:16] [#]} 20. O-O-O $1 {[%emt 0:00:05] Black must now prevent Bg2.} Be6 {[%emt 0:00:56]} 21. Bd3 {[%emt 0:00:08] Hoping for f5.} O-O {[%emt 0:05:44]} 22. f5 {[%emt 0:01:17] Prevents g6.} Bd5 {[%emt 0:02:01]} 23. Rge1 {[%emt 0:03:59]} ({White should play} 23. g6 $16) 23... Rfe8 {[%emt 0:07:13]} 24. Rxe8+ {[%emt 0:06:44]} Rxe8 {[%emt 0:00:37]} 25. Bxa6 $14 {[%emt 0:00:02][%mdl 4096] Endgame KRB-KRB} Re5 {[%emt 0:00:42]} 26. Bc8 {[%emt 0:03:41]} Bf3 {[%emt 0:08:29]} 27. Rf1 {[%emt 0:05:19]} Bc6 {[%emt 0:00:52]} 28. Ba6 {[%emt 0:00:37] Inhibits Re2.} Kf8 {[%emt 0:00:58]} 29. Bd3 {[%emt 0:03:13]} f6 {[%emt 0:02:25]} 30. gxf6 {[%emt 0:01:16]} gxf6 {[%emt 0:00:05] White is slightly better.} 31. Kd2 {[%emt 0:05:09]} Rd5 {[%emt 0:00:23] And now ...c4 would win.} 32. Rf4 {[%emt 0:02:54]} Bb5 {[%emt 0:02:39] ...c4 is the strong threat.} 33. Ke3 {[%emt 0:00:04]} Bxd3 {[%emt 0:00:05]} 34. cxd3 {[%emt 0:00:02]} Ke7 {[%emt 0:00:06]} 35. a3 {[%emt 0:03:40]} bxa3 {[%emt 0:00:38]} 36. bxa3 {[%emt 0:00:03]} Kd6 {[%emt 0:00:26]} 37. a4 {[%emt 0:01:11]} Ke5 {[%emt 0:15:12] Weighted Error Value: White=0.06 (flawless) /Black=0.07 (flawless)} ({Black should try} 37... Re5+ $14 38. Kd2 Kd5) 1/2-1/2